[Event "*** SCC Grand Prix: Titled Tuesday Blitz"]
[Site "Chess.com"]
[Date "2020.07.21"]
[Round "3"]
[White "LuisFSiles"]
[Black "AJSC02"]
[Result "1-0"]
[WhiteElo "2328"]
[BlackElo "2083"]
[TimeControl "180+1"]
[EndTime "10:28:36 PDT"]
[Termination "LuisFSiles won on time"]

1. e4 {[%clk 0:03:00.9]} 1... c5 {[%clk 0:03:00.2]} 2. c3 {[%clk 0:03:00.2]}
2... d5 {[%clk 0:03:00.2]} 3. exd5 {[%clk 0:03:00]} 3... Qxd5 {[%clk 0:03:01.1]}
4. d4 {[%clk 0:03:00.2]} 4... e5 {[%clk 0:03:00.7]} 5. dxe5 {[%clk 0:02:56.2]}
5... Qxd1+ {[%clk 0:03:00.3]} 6. Kxd1 {[%clk 0:02:57.1]} 6... Nc6 {[%clk
0:03:00.5]} 7. Nf3 {[%clk 0:02:52.2]} 7... Bg4 {[%clk 0:03:00]} 8. Be2 {[%clk
0:02:51.2]} 8... O-O-O+ {[%clk 0:02:59.8]} 9. Nbd2 {[%clk 0:02:48.5]} 9... Bxf3
{[%clk 0:02:59.7]} 10. Bxf3 {[%clk 0:02:42.9]} 10... Nxe5 {[%clk 0:02:59.7]} 11.
Be2 {[%clk 0:02:35.4]} 11... Nf6 {[%clk 0:02:58.5]} 12. Kc2 {[%clk 0:02:33.1]}
12... Bd6 {[%clk 0:02:45.5]} 13. h3 {[%clk 0:02:30.6]} 13... Rhe8 {[%clk
0:02:44.8]} 14. Nc4 {[%clk 0:02:17.9]} 14... Bc7 {[%clk 0:02:39.6]} 15. Bg5
{[%clk 0:02:04.6]} 15... Ned7 {[%clk 0:02:20.3]} 16. Rhe1 {[%clk 0:01:53.3]}
16... h6 {[%clk 0:02:18.9]} 17. Bd2 {[%clk 0:01:34.8]} 17... Nb6 {[%clk
0:01:58.1]} 18. Rad1 {[%clk 0:01:31.2]} 18... Nfd5 {[%clk 0:01:48.7]} 19. Nxb6+
{[%clk 0:01:29.4]} 19... Bxb6 {[%clk 0:01:38.6]} 20. Bc4 {[%clk 0:01:21.3]}
20... Rxe1 {[%clk 0:01:15.8]} 21. Rxe1 {[%clk 0:01:22.2]} 21... f6 {[%clk
0:01:10.4]} 22. g3 {[%clk 0:00:46.3]} 22... Bc7 {[%clk 0:01:08.2]} 23. f4 {[%clk
0:00:41.2]} 23... Kb8 {[%clk 0:01:07.8]} 24. Re4 {[%clk 0:00:34.8]} 24... Nb6
{[%clk 0:01:07.3]} 25. Be2 {[%clk 0:00:32.8]} 25... a6 {[%clk 0:01:02.6]} 26.
Re7 {[%clk 0:00:29.4]} 26... Rd7 {[%clk 0:00:58.2]} 27. Re8+ {[%clk 0:00:27.3]}
27... Rd8 {[%clk 0:00:56.6]} 28. Rxd8+ {[%clk 0:00:25.3]} 28... Bxd8 {[%clk
0:00:57.5]} 29. Kd3 {[%clk 0:00:25.4]} 29... Kc7 {[%clk 0:00:56.7]} 30. Ke4
{[%clk 0:00:24.9]} 30... g6 {[%clk 0:00:55.2]} 31. h4 {[%clk 0:00:21.7]} 31...
Kd6 {[%clk 0:00:53.1]} 32. h5 {[%clk 0:00:20.3]} 32... f5+ {[%clk 0:00:49.8]}
33. Kd3 {[%clk 0:00:19.4]} 33... gxh5 {[%clk 0:00:40]} 34. Bxh5 {[%clk
0:00:20.3]} 34... Ke6 {[%clk 0:00:36.8]} 35. b3 {[%clk 0:00:20]} 35... Nd7
{[%clk 0:00:35.1]} 36. Be3 {[%clk 0:00:18.8]} 36... Be7 {[%clk 0:00:33.7]} 37.
Bf3 {[%clk 0:00:18.8]} 37... b5 {[%clk 0:00:31]} 38. a4 {[%clk 0:00:18.8]} 38...
b4 {[%clk 0:00:19.6]} 39. Kc4 {[%clk 0:00:12.9]} 39... a5 {[%clk 0:00:15.9]} 40.
Bd5+ {[%clk 0:00:12.4]} 40... Kf6 {[%clk 0:00:12.2]} 41. Bc6 {[%clk 0:00:09.4]}
41... Nb6+ {[%clk 0:00:09.4]} 42. Kb5 {[%clk 0:00:09.7]} 42... bxc3 {[%clk
0:00:09.5]} 43. Kxb6 {[%clk 0:00:08.9]} 43... c2 {[%clk 0:00:09.3]} 44. Kxa5
{[%clk 0:00:08.9]} 44... Bd8+ {[%clk 0:00:08]} 45. Kb5 {[%clk 0:00:08.5]} 1-0

[Event "*** SCC Grand Prix: Titled Tuesday Blitz"]
[Site "Chess.com"]
[Date "2020.07.21"]
[Round "3"]
[White "viniciusrego"]
[Black "pedro_nascimento85"]
[Result "1-0"]
[WhiteElo "2280"]
[BlackElo "1933"]
[TimeControl "180+1"]
[EndTime "10:28:36 PDT"]
[Termination "viniciusrego won on time"]

1. e4 {[%clk 0:03:00.9]} 1... e6 {[%clk 0:02:59.4]} 2. Nf3 {[%clk 0:03:01.8]}
2... d5 {[%clk 0:02:58.5]} 3. exd5 {[%clk 0:03:00.9]} 3... exd5 {[%clk
0:02:59.4]} 4. d4 {[%clk 0:03:01.4]} 4... Bd6 {[%clk 0:02:57.5]} 5. Bd3 {[%clk
0:02:50.8]} 5... Ne7 {[%clk 0:02:56.7]} 6. O-O {[%clk 0:02:50.7]} 6... Nbc6
{[%clk 0:02:55.6]} 7. c3 {[%clk 0:02:46]} 7... Bg4 {[%clk 0:02:54.5]} 8. h3
{[%clk 0:02:42.9]} 8... Bh5 {[%clk 0:02:54.1]} 9. Bg5 {[%clk 0:02:36.3]} 9... f6
{[%clk 0:02:53.7]} 10. Bh4 {[%clk 0:02:32.8]} 10... g5 {[%clk 0:02:47.7]} 11.
Bg3 {[%clk 0:02:32.8]} 11... Bxg3 {[%clk 0:02:42.8]} 12. fxg3 {[%clk 0:02:33.7]}
12... Qd7 {[%clk 0:02:42.5]} 13. g4 {[%clk 0:02:07.5]} 13... Bf7 {[%clk
0:02:37]} 14. Re1 {[%clk 0:01:57.8]} 14... O-O-O {[%clk 0:02:35.7]} 15. Nbd2
{[%clk 0:01:49]} 15... h5 {[%clk 0:02:34.2]} 16. gxh5 {[%clk 0:01:42.4]} 16...
Bxh5 {[%clk 0:02:33.2]} 17. Qa4 {[%clk 0:01:38.8]} 17... g4 {[%clk 0:02:26.8]}
18. Rxe7 {[%clk 0:01:38.1]} 18... Qxe7 {[%clk 0:01:58.9]} 19. Bf5+ {[%clk
0:01:35.5]} 19... Kb8 {[%clk 0:01:58.5]} 20. hxg4 {[%clk 0:01:22.9]} 20... Be8
{[%clk 0:01:54.8]} 21. Qc2 {[%clk 0:01:15.3]} 21... Bd7 {[%clk 0:01:49.8]} 22.
Re1 {[%clk 0:01:11.6]} 22... Qg7 {[%clk 0:01:46.1]} 23. Nb3 {[%clk 0:01:07.6]}
23... Bxf5 {[%clk 0:01:32.6]} 24. Qxf5 {[%clk 0:01:08.5]} 24... Qh6 {[%clk
0:01:31.2]} 25. Nc5 {[%clk 0:00:59.6]} 25... Qh1+ {[%clk 0:00:31.7]} 26. Kf2
{[%clk 0:00:58.9]} 26... Qh7 {[%clk 0:00:31.6]} 27. Qxf6 {[%clk 0:00:38.5]}
27... Qc2+ {[%clk 0:00:25]} 28. Re2 {[%clk 0:00:37.8]} 28... Qb1 {[%clk
0:00:20.8]} 29. Na6+ {[%clk 0:00:34.8]} 29... bxa6 {[%clk 0:00:19.5]} 30. Qxc6
{[%clk 0:00:34.8]} 30... Qd3 {[%clk 0:00:18.5]} 31. g5 {[%clk 0:00:20]} 31...
Qb5 {[%clk 0:00:17.9]} 32. Qxb5+ {[%clk 0:00:12.8]} 32... axb5 {[%clk
0:00:17.8]} 33. Ne5 {[%clk 0:00:13.7]} 33... Kb7 {[%clk 0:00:15.8]} 34. Kg3
{[%clk 0:00:13.8]} 34... Rhg8 {[%clk 0:00:15.2]} 35. g6 {[%clk 0:00:13.9]} 35...
Rd6 {[%clk 0:00:15]} 36. Rf2 {[%clk 0:00:13.9]} 36... Re6 {[%clk 0:00:12.1]} 37.
Rf7 {[%clk 0:00:13.5]} 37... Kb6 {[%clk 0:00:09.9]} 38. Kf4 {[%clk 0:00:13.4]}
38... Rexg6 {[%clk 0:00:05.9]} 39. Nxg6 {[%clk 0:00:13.1]} 39... Rxg6 {[%clk
0:00:06.4]} 40. g4 {[%clk 0:00:13.3]} 40... a5 {[%clk 0:00:06.5]} 41. g5 {[%clk
0:00:13.6]} 41... Kc6 {[%clk 0:00:06]} 42. Rf6+ {[%clk 0:00:14]} 42... Rxf6+
{[%clk 0:00:05.2]} 43. gxf6 {[%clk 0:00:14.9]} 43... Kd7 {[%clk 0:00:05.6]} 44.
Ke5 {[%clk 0:00:14.8]} 44... c6 {[%clk 0:00:05.6]} 45. Kf5 {[%clk 0:00:14.5]}
45... Ke8 {[%clk 0:00:05.7]} 46. Kg6 {[%clk 0:00:14.9]} 46... Kf8 {[%clk
0:00:06]} 47. f7 {[%clk 0:00:15.2]} 47... b4 {[%clk 0:00:03.8]} 48. Kf6 {[%clk
0:00:13.9]} 48... bxc3 {[%clk 0:00:02.6]} 49. bxc3 {[%clk 0:00:14.8]} 49... a4
{[%clk 0:00:02.7]} 50. a3 {[%clk 0:00:14.3]} 1-0

[Event "*** SCC Grand Prix: Titled Tuesday Blitz"]
[Site "Chess.com"]
[Date "2020.07.21"]
[Round "3"]
[White "Parkas"]
[Black "crazychessbr"]
[Result "1-0"]
[WhiteElo "2347"]
[BlackElo "2120"]
[TimeControl "180+1"]
[EndTime "10:28:38 PDT"]
[Termination "Parkas won on time"]

1. d4 {[%clk 0:03:00.9]} 1... Nf6 {[%clk 0:02:59.6]} 2. Nc3 {[%clk 0:03:01.1]}
2... g6 {[%clk 0:03:00]} 3. e4 {[%clk 0:03:00.2]} 3... d6 {[%clk 0:03:00.4]} 4.
Nf3 {[%clk 0:02:55.3]} 4... Bg7 {[%clk 0:03:00.9]} 5. Be2 {[%clk 0:02:54.4]}
5... O-O {[%clk 0:03:01.4]} 6. O-O {[%clk 0:02:54.4]} 6... Nc6 {[%clk
0:03:01.3]} 7. h3 {[%clk 0:02:47.8]} 7... e5 {[%clk 0:03:00.4]} 8. Be3 {[%clk
0:02:46.9]} 8... Nd7 {[%clk 0:02:58.3]} 9. Qd2 {[%clk 0:02:25.4]} 9... Re8
{[%clk 0:02:25.5]} 10. Rad1 {[%clk 0:02:20.9]} 10... a6 {[%clk 0:01:35.5]} 11.
a3 {[%clk 0:02:11.3]} 11... exd4 {[%clk 0:01:26.4]} 12. Nxd4 {[%clk 0:02:11]}
12... Nde5 {[%clk 0:01:10.6]} 13. f4 {[%clk 0:02:07.8]} 13... Nxd4 {[%clk
0:01:09.2]} 14. Bxd4 {[%clk 0:02:05.4]} 14... Nc6 {[%clk 0:01:08.2]} 15. Bxg7
{[%clk 0:02:05.4]} 15... Kxg7 {[%clk 0:01:09.1]} 16. f5 {[%clk 0:01:53.1]} 16...
Re5 {[%clk 0:01:06.6]} 17. f6+ {[%clk 0:01:52.5]} 17... Kg8 {[%clk 0:01:06.7]}
18. Nd5 {[%clk 0:01:34.2]} 18... Be6 {[%clk 0:01:03]} 19. Qh6 {[%clk 0:01:33.3]}
19... Qf8 {[%clk 0:01:00.2]} 20. Qxf8+ {[%clk 0:01:33.5]} 20... Kxf8 {[%clk
0:01:00.4]} 21. Nxc7 {[%clk 0:01:33.9]} 21... Rc8 {[%clk 0:00:58.9]} 22. Nxe6+
{[%clk 0:01:30.7]} 22... Rxe6 {[%clk 0:00:59.8]} 23. Bd3 {[%clk 0:01:23.6]}
23... Ne5 {[%clk 0:00:57.9]} 24. Rf2 {[%clk 0:01:17.6]} 24... Nd7 {[%clk
0:00:56.4]} 25. Rdf1 {[%clk 0:01:15.1]} 25... Nc5 {[%clk 0:00:56.6]} 26. Re2
{[%clk 0:01:10.5]} 26... Rce8 {[%clk 0:00:56.2]} 27. Rff2 {[%clk 0:00:41.7]}
27... Re5 {[%clk 0:00:48.1]} 28. Kf1 {[%clk 0:00:38]} 28... R8e6 {[%clk
0:00:48.1]} 29. Rf4 {[%clk 0:00:20.5]} 29... b5 {[%clk 0:00:31]} 30. Ke1 {[%clk
0:00:19.4]} 30... Ke8 {[%clk 0:00:30.9]} 31. Kd2 {[%clk 0:00:19.2]} 31... Kd7
{[%clk 0:00:31]} 32. b4 {[%clk 0:00:18.7]} 32... Na4 {[%clk 0:00:28.8]} 33. c4
{[%clk 0:00:15.4]} 33... bxc4 {[%clk 0:00:23.3]} 34. Bxc4 {[%clk 0:00:15.5]}
34... d5 {[%clk 0:00:10.4]} 35. Bxd5 {[%clk 0:00:13.7]} 35... Rd6 {[%clk
0:00:09.3]} 36. Re3 {[%clk 0:00:10.7]} 36... Nb6 {[%clk 0:00:06.9]} 37. Rd3
{[%clk 0:00:08.4]} 37... Nxd5 {[%clk 0:00:06.3]} 38. exd5 {[%clk 0:00:08.4]}
38... Rexd5 {[%clk 0:00:05.9]} 39. Rf3 {[%clk 0:00:07.6]} 39... Ke6 {[%clk
0:00:05.2]} 40. Rxd5 {[%clk 0:00:05.8]} 40... Rxd5+ {[%clk 0:00:05.6]} 41. Kc3
{[%clk 0:00:06.4]} 41... Rf5 {[%clk 0:00:04.9]} 42. Rxf5 {[%clk 0:00:05.7]}
42... Kxf5 {[%clk 0:00:05.5]} 43. a4 {[%clk 0:00:05]} 43... Kxf6 {[%clk
0:00:06.4]} 44. Kc4 {[%clk 0:00:04.9]} 44... Ke6 {[%clk 0:00:06.6]} 45. Kc5
{[%clk 0:00:05.3]} 45... Kd7 {[%clk 0:00:06.8]} 46. Kb6 {[%clk 0:00:05.6]} 46...
a5 {[%clk 0:00:05.9]} 47. b5 {[%clk 0:00:04.1]} 47... f5 {[%clk 0:00:04.6]} 48.
Ka7 {[%clk 0:00:03.5]} 1-0

[Event "*** SCC Grand Prix: Titled Tuesday Blitz"]
[Site "Chess.com"]
[Date "2020.07.21"]
[Round "3"]
[White "bocah_sakit"]
[Black "MF1966Idrisov"]
[Result "1-0"]
[WhiteElo "2725"]
[BlackElo "2360"]
[TimeControl "180+1"]
[EndTime "10:28:39 PDT"]
[Termination "bocah_sakit won on time"]

1. e4 {[%clk 0:03:00.9]} 1... c6 {[%clk 0:02:57.4]} 2. d4 {[%clk 0:03:01.1]}
2... d5 {[%clk 0:02:57.5]} 3. Nd2 {[%clk 0:03:00.9]} 3... dxe4 {[%clk
0:02:56.1]} 4. Nxe4 {[%clk 0:03:01.8]} 4... Nd7 {[%clk 0:02:55.4]} 5. Nf3 {[%clk
0:02:59.8]} 5... Ngf6 {[%clk 0:02:53.8]} 6. Ng3 {[%clk 0:02:54.5]} 6... e6
{[%clk 0:02:49.4]} 7. c4 {[%clk 0:02:54.8]} 7... Bd6 {[%clk 0:02:48.9]} 8. Bd3
{[%clk 0:02:54]} 8... O-O {[%clk 0:02:47.8]} 9. O-O {[%clk 0:02:54.5]} 9... c5
{[%clk 0:02:47.3]} 10. b3 {[%clk 0:02:48.7]} 10... cxd4 {[%clk 0:02:39.2]} 11.
Nxd4 {[%clk 0:02:49.6]} 11... Be5 {[%clk 0:02:32.1]} 12. Bb2 {[%clk 0:02:47.9]}
12... Nc5 {[%clk 0:02:27.9]} 13. Bc2 {[%clk 0:02:47.7]} 13... Bxg3 {[%clk
0:01:59.6]} 14. hxg3 {[%clk 0:02:47.4]} 14... e5 {[%clk 0:01:53.3]} 15. Nb5
{[%clk 0:02:47.4]} 15... Qe7 {[%clk 0:01:42.3]} 16. Re1 {[%clk 0:02:44.5]} 16...
e4 {[%clk 0:01:38.9]} 17. Qd6 {[%clk 0:02:21.8]} 17... Qxd6 {[%clk 0:01:31.9]}
18. Nxd6 {[%clk 0:02:22.7]} 18... Nd3 {[%clk 0:01:27.1]} 19. Bxd3 {[%clk
0:02:17.6]} 19... exd3 {[%clk 0:01:26.6]} 20. Bxf6 {[%clk 0:02:17.7]} 20... gxf6
{[%clk 0:01:25.4]} 21. Rad1 {[%clk 0:02:18.3]} 21... b6 {[%clk 0:01:14.6]} 22.
Rxd3 {[%clk 0:02:17.7]} 22... Be6 {[%clk 0:01:14.3]} 23. f4 {[%clk 0:02:11]}
23... f5 {[%clk 0:01:11.9]} 24. Red1 {[%clk 0:02:04.9]} 24... Rfd8 {[%clk
0:01:11.1]} 25. Nb5 {[%clk 0:01:58.8]} 25... Rxd3 {[%clk 0:01:09.5]} 26. Rxd3
{[%clk 0:01:59.7]} 26... Rc8 {[%clk 0:01:01]} 27. a4 {[%clk 0:01:46]} 27... a6
{[%clk 0:00:59.9]} 28. Nd6 {[%clk 0:01:42.1]} 28... Rd8 {[%clk 0:00:56.8]} 29.
Rd2 {[%clk 0:01:33.7]} 29... Rd7 {[%clk 0:00:51.6]} 30. Kf2 {[%clk 0:01:31.8]}
30... Kf8 {[%clk 0:00:50.2]} 31. Ke3 {[%clk 0:01:30.2]} 31... Rd8 {[%clk
0:00:33.4]} 32. Ne4 {[%clk 0:01:15.5]} 32... Rc8 {[%clk 0:00:24.8]} 33. Ng5
{[%clk 0:01:14.1]} 33... Ke7 {[%clk 0:00:21.4]} 34. Nxh7 {[%clk 0:00:55.5]}
34... f6 {[%clk 0:00:20.1]} 35. a5 {[%clk 0:00:26.5]} 35... bxa5 {[%clk
0:00:17]} 36. Ra2 {[%clk 0:00:27.2]} 36... Rh8 {[%clk 0:00:13.4]} 37. Rxa5
{[%clk 0:00:27.3]} 37... Rxh7 {[%clk 0:00:13.1]} 38. Rxa6 {[%clk 0:00:27]} 38...
Rh1 {[%clk 0:00:12.8]} 39. Ra7+ {[%clk 0:00:19.6]} 39... Kd6 {[%clk 0:00:11.7]}
40. Ra6+ {[%clk 0:00:20.2]} 40... Ke7 {[%clk 0:00:11.3]} 41. Kd4 {[%clk
0:00:20.5]} 41... Rd1+ {[%clk 0:00:09.6]} 42. Kc5 {[%clk 0:00:20.5]} 42... Rg1
{[%clk 0:00:09.8]} 43. Ra7+ {[%clk 0:00:19.3]} 43... Bd7 {[%clk 0:00:08]} 44. b4
{[%clk 0:00:18.9]} 44... Rxg2 {[%clk 0:00:07.8]} 45. b5 {[%clk 0:00:19.5]} 45...
Rxg3 {[%clk 0:00:07.8]} 46. b6 {[%clk 0:00:20]} 46... Rb3 {[%clk 0:00:08.1]} 47.
b7 {[%clk 0:00:19.2]} 47... Rb1 {[%clk 0:00:05.9]} 48. Kd5 {[%clk 0:00:18.7]}
48... Kd8 {[%clk 0:00:04.8]} 49. Kd6 {[%clk 0:00:16.4]} 49... Rd1+ {[%clk
0:00:02.7]} 50. Kc5 {[%clk 0:00:17.1]} 50... Rb1 {[%clk 0:00:02.7]} 51. Kd6
{[%clk 0:00:11.5]} 1-0

[Event "*** SCC Grand Prix: Titled Tuesday Blitz"]
[Site "Chess.com"]
[Date "2020.07.21"]
[Round "3"]
[White "Khazieva_Elza"]
[Black "Chopper1905"]
[Result "0-1"]
[WhiteElo "2352"]
[BlackElo "2889"]
[TimeControl "180+1"]
[EndTime "10:28:40 PDT"]
[Termination "Chopper1905 won by checkmate"]

1. e4 {[%clk 0:03:00.9]} 1... Nc6 {[%clk 0:02:43.3]} 2. d3 {[%clk 0:02:55.3]}
2... d5 {[%clk 0:02:38.2]} 3. Nd2 {[%clk 0:02:54.9]} 3... dxe4 {[%clk
0:02:36.2]} 4. dxe4 {[%clk 0:02:53.7]} 4... e5 {[%clk 0:02:37.1]} 5. Ngf3 {[%clk
0:02:53.6]} 5... Bc5 {[%clk 0:02:37.4]} 6. Bc4 {[%clk 0:02:52]} 6... Nf6 {[%clk
0:02:37.2]} 7. O-O {[%clk 0:02:51.6]} 7... O-O {[%clk 0:02:37]} 8. c3 {[%clk
0:02:51.1]} 8... a5 {[%clk 0:02:37]} 9. Qe2 {[%clk 0:02:50.4]} 9... a4 {[%clk
0:02:34.9]} 10. h3 {[%clk 0:02:41.6]} 10... Qe7 {[%clk 0:02:21.5]} 11. Nh4
{[%clk 0:02:34.1]} 11... Rd8 {[%clk 0:02:06.8]} 12. Re1 {[%clk 0:02:21.8]} 12...
g6 {[%clk 0:01:45.8]} 13. Nf1 {[%clk 0:02:18.1]} 13... Nh5 {[%clk 0:01:44.6]}
14. Nf3 {[%clk 0:02:01.9]} 14... Be6 {[%clk 0:01:39.3]} 15. Bg5 {[%clk
0:01:55.1]} 15... f6 {[%clk 0:01:39.2]} 16. Be3 {[%clk 0:01:38.5]} 16... Bxe3
{[%clk 0:01:27.1]} 17. Bxe6+ {[%clk 0:01:32.9]} 17... Qxe6 {[%clk 0:01:28]} 18.
Nxe3 {[%clk 0:01:32.8]} 18... Nf4 {[%clk 0:01:28.4]} 19. Qc4 {[%clk 0:01:32.3]}
19... Qxc4 {[%clk 0:01:27.2]} 20. Nxc4 {[%clk 0:01:33.2]} 20... Rd3 {[%clk
0:01:20.2]} 21. Re3 {[%clk 0:01:25.2]} 21... Rxe3 {[%clk 0:01:14.2]} 22. Nxe3
{[%clk 0:01:22.5]} 22... a3 {[%clk 0:01:14.7]} 23. Rb1 {[%clk 0:01:15.2]} 23...
b6 {[%clk 0:01:06.9]} 24. Nd5 {[%clk 0:00:57.7]} 24... Nxd5 {[%clk 0:01:04.3]}
25. exd5 {[%clk 0:00:58.6]} 25... Ne7 {[%clk 0:01:02.8]} 26. c4 {[%clk
0:00:57.2]} 26... Nf5 {[%clk 0:00:58.1]} 27. b3 {[%clk 0:00:51.4]} 27... Kf7
{[%clk 0:00:55.6]} 28. g4 {[%clk 0:00:47.8]} 28... Nd6 {[%clk 0:00:54.6]} 29.
Nd2 {[%clk 0:00:45.1]} 29... f5 {[%clk 0:00:52]} 30. Rc1 {[%clk 0:00:40.1]}
30... Ra5 {[%clk 0:00:32.8]} 31. Kg2 {[%clk 0:00:25.7]} 31... Kf6 {[%clk
0:00:31.5]} 32. Kf3 {[%clk 0:00:21.5]} 32... e4+ {[%clk 0:00:30.3]} 33. Ke3
{[%clk 0:00:20.3]} 33... Kg5 {[%clk 0:00:28.7]} 34. f4+ {[%clk 0:00:15.4]} 34...
Kh4 {[%clk 0:00:27.4]} 35. gxf5 {[%clk 0:00:13.3]} 35... gxf5 {[%clk 0:00:26.8]}
36. Rg1 {[%clk 0:00:13]} 36... b5 {[%clk 0:00:22.8]} 37. c5 {[%clk 0:00:12.6]}
37... Ne8 {[%clk 0:00:20.2]} 38. Rg5 {[%clk 0:00:08.5]} 38... b4 {[%clk
0:00:17.7]} 39. c6 {[%clk 0:00:07.6]} 39... Rxd5 {[%clk 0:00:17.5]} 40. Nc4
{[%clk 0:00:06.8]} 40... Nf6 {[%clk 0:00:12.6]} 41. Rg7 {[%clk 0:00:04.2]} 41...
Rd3+ {[%clk 0:00:12.5]} 42. Ke2 {[%clk 0:00:03.8]} 42... Nd5 {[%clk 0:00:12.9]}
43. Rxh7+ {[%clk 0:00:03.4]} 43... Kg3 {[%clk 0:00:13.4]} 44. Rd7 {[%clk
0:00:02.2]} 44... Nxf4+ {[%clk 0:00:12.9]} 45. Ke1 {[%clk 0:00:02.4]} 45... Rc3
{[%clk 0:00:08]} 46. Ne5 {[%clk 0:00:01.6]} 46... e3 {[%clk 0:00:07.5]} 47. Rg7+
{[%clk 0:00:01.3]} 47... Kh2 {[%clk 0:00:07.4]} 48. Nf3+ {[%clk 0:00:01.7]}
48... Kxh3 {[%clk 0:00:08]} 49. Rh7+ {[%clk 0:00:01.9]} 49... Kg3 {[%clk
0:00:08.5]} 50. Nd4 {[%clk 0:00:02.2]} 50... Rc1# {[%clk 0:00:08.4]} 0-1

[Event "*** SCC Grand Prix: Titled Tuesday Blitz"]
[Site "Chess.com"]
[Date "2020.07.21"]
[Round "3"]
[White "MarceloPlaya"]
[Black "DonBroca"]
[Result "0-1"]
[WhiteElo "2310"]
[BlackElo "2089"]
[TimeControl "180+1"]
[EndTime "10:28:40 PDT"]
[Termination "DonBroca won on time"]

1. e4 {[%clk 0:03:00.9]} 1... c5 {[%clk 0:02:59.7]} 2. Nf3 {[%clk 0:03:00.1]}
2... d6 {[%clk 0:02:59.6]} 3. d4 {[%clk 0:02:59.5]} 3... cxd4 {[%clk 0:03:00.5]}
4. Nxd4 {[%clk 0:02:58.8]} 4... Nf6 {[%clk 0:03:01.1]} 5. Nc3 {[%clk 0:02:57.9]}
5... g6 {[%clk 0:03:01.5]} 6. Be3 {[%clk 0:02:56.3]} 6... Bg7 {[%clk 0:03:00.8]}
7. Bc4 {[%clk 0:02:55.9]} 7... O-O {[%clk 0:03:00.4]} 8. Bb3 {[%clk 0:02:48.8]}
8... Nc6 {[%clk 0:02:59.9]} 9. f3 {[%clk 0:02:47.9]} 9... Bd7 {[%clk 0:02:58.7]}
10. Qd2 {[%clk 0:02:47.7]} 10... Rc8 {[%clk 0:02:58.9]} 11. O-O-O {[%clk
0:02:46.9]} 11... Ne5 {[%clk 0:02:59.1]} 12. h4 {[%clk 0:02:45.7]} 12... h5
{[%clk 0:02:56.9]} 13. g4 {[%clk 0:02:44.9]} 13... Rxc3 {[%clk 0:01:54.1]} 14.
Qxc3 {[%clk 0:02:29.4]} 14... hxg4 {[%clk 0:01:46.2]} 15. Kb1 {[%clk 0:02:22.3]}
15... Nxf3 {[%clk 0:01:25.4]} 16. Nxf3 {[%clk 0:02:18.1]} 16... gxf3 {[%clk
0:00:57.6]} 17. Bd4 {[%clk 0:02:07.9]} 17... Bg4 {[%clk 0:00:52.7]} 18. Qe3
{[%clk 0:01:53.5]} 18... Qa5 {[%clk 0:00:41.8]} 19. Rdg1 {[%clk 0:01:50.2]}
19... Bh5 {[%clk 0:00:37.4]} 20. Rg5 {[%clk 0:01:46.1]} 20... e5 {[%clk
0:00:29.4]} 21. Bc3 {[%clk 0:01:40.9]} 21... Qb6 {[%clk 0:00:26.8]} 22. Qxb6
{[%clk 0:01:36.9]} 22... axb6 {[%clk 0:00:27.7]} 23. Bd5 {[%clk 0:01:11]} 23...
Nxd5 {[%clk 0:00:26.6]} 24. exd5 {[%clk 0:01:10.6]} 24... Bh6 {[%clk 0:00:21.5]}
25. Rg3 {[%clk 0:01:03.9]} 25... e4 {[%clk 0:00:20.6]} 26. Rf1 {[%clk
0:00:55.7]} 26... Bf4 {[%clk 0:00:20.4]} 27. Rgg1 {[%clk 0:00:49.5]} 27... e3
{[%clk 0:00:16]} 28. Be1 {[%clk 0:00:48.5]} 28... f2 {[%clk 0:00:15.4]} 29. Rg2
{[%clk 0:00:30.3]} 29... fxe1=Q+ {[%clk 0:00:14.6]} 30. Rxe1 {[%clk 0:00:30]}
30... e2 {[%clk 0:00:14]} 31. Rexe2 {[%clk 0:00:26.6]} 31... Bxe2 {[%clk
0:00:14.9]} 32. Rxe2 {[%clk 0:00:26.6]} 32... Kg7 {[%clk 0:00:15.3]} 33. Re7
{[%clk 0:00:25.8]} 33... Rh8 {[%clk 0:00:12.6]} 34. Rxb7 {[%clk 0:00:23.4]}
34... Rxh4 {[%clk 0:00:12.8]} 35. a4 {[%clk 0:00:23.5]} 35... Be3 {[%clk
0:00:13.1]} 36. b3 {[%clk 0:00:20.4]} 36... g5 {[%clk 0:00:12.4]} 37. c4 {[%clk
0:00:18.7]} 37... g4 {[%clk 0:00:12.5]} 38. Re7 {[%clk 0:00:16.4]} 38... Rh3
{[%clk 0:00:10]} 39. Re4 {[%clk 0:00:12.9]} 39... f5 {[%clk 0:00:08.8]} 40. Re7+
{[%clk 0:00:12.5]} 40... Kf6 {[%clk 0:00:09.2]} 41. Re8 {[%clk 0:00:12.2]} 41...
g3 {[%clk 0:00:08.4]} 42. Rg8 {[%clk 0:00:11.1]} 42... Rh1+ {[%clk 0:00:06.8]}
43. Kc2 {[%clk 0:00:10.4]} 43... f4 {[%clk 0:00:07.7]} 44. Kd3 {[%clk
0:00:09.6]} 44... Rd1+ {[%clk 0:00:07.6]} 45. Ke2 {[%clk 0:00:09]} 45... Rd2+
{[%clk 0:00:07.6]} 46. Kf3 {[%clk 0:00:08.9]} 46... g2 {[%clk 0:00:07.5]} 47.
Rxg2 {[%clk 0:00:07.9]} 47... Rxg2 {[%clk 0:00:08.4]} 48. Kxg2 {[%clk
0:00:07.6]} 48... Ke5 {[%clk 0:00:09.3]} 49. b4 {[%clk 0:00:05.1]} 49... Kd4
{[%clk 0:00:08.9]} 50. c5 {[%clk 0:00:04.5]} 50... bxc5 {[%clk 0:00:08.8]} 51.
b5 {[%clk 0:00:02.3]} 51... c4 {[%clk 0:00:09.1]} 52. b6 {[%clk 0:00:01.5]}
52... Kd3 {[%clk 0:00:09.6]} 0-1